bitfinex/quotes_SOLUSD_20240717
["timestamp","ask_amount","ask_price","bid_price","bid_amount"]
[1721203795923,6.2019,161.24,161.19,16.0644]
[1721203796126,6.2023,161.23,161.19,16.0644]
[1721203796440,21.0023,161.23,161.19,16.0644]
[1721203796625,6.2027,161.22,161.19,16.0644]
[1721203796933,21.0023,161.23,161.19,16.0644]
[1721203797117,6.203,161.22,161.19,16.0644]
[1721203797319,14.8,161.2,161.19,16.0644]
[1721203797729,21.0034,161.2,161.19,16.0644]
[1721203797933,14.8,161.2,161.19,16.0644]
[1721203798524,15.5051,161.24,161.19,16.0644]
[1721203798728,14.8,161.2,161.19,16.0644]
[1721203799432,14.8,161.2,161.14,15.3087]
[1721203799631,14.8,161.18,161.14,15.3087]
[1721203800236,14.8,161.18,161.14,16.54959088]
[1721203800543,14.8,161.18,161.14,15.3087]
[1721203800839,14.8,161.18,161.15,45.0]
[1721203801540,14.8,161.16,161.14,15.3087]
[1721203802349,14.8,161.17,161.14,15.3087]
[1721203802555,1.55126324,161.21,161.15,1.24101059]
[1721203802730,6.2029,161.22,161.15,61.04101059]
[1721203802930,14.8,161.2,161.15,61.04101059]
[1721203803165,7.75328728,161.23,161.15,61.04101059]
[1721203803452,14.8,161.2,161.15,59.8]
[1721203803828,14.8,161.2,161.16,1.24069686]
[1721203804157,14.8,161.19,161.16,1.24069686]
[1721203804327,1.55098728,161.23,161.16,1.24069686]
[1721203804530,6.2031,161.21,161.15,45.0]
[1721203804729,7.75346019,161.23,161.15,51.1853]
[1721203804927,7.75272037,161.24,161.15,51.1853]
[1721203805128,6.202,161.24,161.16,0.97444338]
[1721203805349,6.2023,161.23,161.16,0.97444338]
[1721203805651,6.2023,161.23,161.15,51.1853]
[1721203805853,6.202,161.24,161.16,16.212]
[1721203806042,6.2019,161.24,161.17,45.0]
[1721203806242,6.2019,161.24,161.18,1.24036534]
[1721203806629,1.55064685,161.27,161.18,1.24036534]
[1721203806827,7.75185372,161.26,161.18,1.24036534]
[1721203807460,6.2016,161.25,161.17,45.0]
[1721203808133,6.2016,161.25,161.17,46.20101953]
[1721203808332,6.2016,161.25,161.17,45.0]
[1721203808557,6.2019,161.24,161.17,45.0]
[1721203809433,6.2016,161.25,161.17,45.0]
[1721203809651,6.2016,161.25,161.18,0.55964697]
[1721203810162,6.2016,161.25,161.17,45.0]
[1721203810359,2.38691409,161.28,161.17,45.0]
[1721203810656,6.202,161.24,161.18,0.35390494]
[1721203810858,6.202,161.24,161.18,1.24037389]
[1721203811249,6.2016,161.25,161.18,1.24037389]
[1721203811553,15.5023,161.27,161.18,1.24037389]
[1721203811762,6.202,161.24,161.18,1.24037389]
[1721203812134,6.202,161.24,161.19,0.68211214]
[1721203813844,6.202,161.24,161.2,1.24043301]
[1721203814151,6.202,161.24,161.17,45.0]
[1721203814152,6.202,161.24,161.21,1.24044319]
[1721203814349,6.2038,161.19,161.16,16.212]
[1721203814549,1.55055516,161.23,161.16,16.212]
[1721203814860,6.2033,161.21,161.16,16.212]
[1721203815341,6.2033,161.21,161.17,1.24064468]
[1721203815535,6.2028,161.22,161.18,1.2405677]
[1721203815745,6.2023,161.24,161.18,1.2405677]
[1721203815935,1.5507649,161.26,161.18,1.2405677]
[1721203816657,6.202,161.24,161.18,1.2405677]
[1721203817159,6.2023,161.23,161.19,1.24044435]
[1721203818237,1.5507649,161.26,161.19,1.24044435]
[1721203818559,6.2027,161.22,161.17,45.0]
[1721203818938,1.55061531,161.24,161.18,1.24053778]
[1721203819139,1.55078693,161.23,161.18,1.24053778]
[1721203819362,6.2034,161.2,161.18,1.24053778]
[1721203819537,6.2031,161.21,161.16,16.212]
[1721203819741,6.2034,161.2,161.16,16.212]
[1721203820063,6.2032,161.21,161.17,0.47192735]
[1721203820238,6.2032,161.21,161.17,45.47192735]
[1721203820639,6.2035,161.2,161.16,16.212]
[1721203821052,1.55078693,161.23,161.16,16.212]
[1721203821053,6.203,161.21,161.16,16.212]
[1721203821257,6.203,161.21,161.17,1.2406849]
[1721203821435,6.203,161.21,161.16,16.212]
[1721203821944,6.2028,161.22,161.17,1.10147902]
[1721203822157,6.2028,161.22,161.17,45.0]
[1721203822463,1.55078693,161.23,161.18,0.66978849]
[1721203822650,6.2021,161.24,161.17,45.0]
[1721203823037,6.2025,161.23,161.17,45.0]
[1721203824244,6.2019,161.24,161.17,45.0]
[1721203824666,6.2016,161.25,161.17,45.0]
[1721203825144,2.38700174,161.28,161.18,16.577]
[1721203825346,8.58750174,161.28,161.2,23.0283]
[1721203825557,8.58750174,161.28,161.21,1.06225786]
[1721203825838,8.58750174,161.28,161.21,46.06225786]
[1721203826349,14.79,161.26,161.21,60.85225786]
[1721203827053,7.0368381,161.28,161.22,14.79]
[1721203827255,21.8268381,161.28,161.23,46.12474445]
[1721203827444,21.8268381,161.28,161.23,59.79]
[1721203827852,14.79,161.26,161.23,45.0]
[1721203828342,14.79,161.26,161.22,45.0]
[1721203828845,20.9911,161.26,161.22,45.0]
[1721203829254,14.79,161.25,161.22,45.0]
[1721203829562,6.2017,161.25,161.21,45.0]
[1721203829747,6.202,161.24,161.2,16.577]
[1721203829956,14.79,161.23,161.2,16.577]
[1721203831144,14.79,161.22,161.2,16.577]
[1721203831760,1.5507376,161.27,161.2,16.577]
[1721203831962,14.79,161.24,161.2,16.577]
[1721203832548,14.79,161.23,161.2,16.577]
[1721203832770,14.79,161.24,161.21,45.0]
[1721203834160,14.79,161.24,161.21,46.24036731]
[1721203834367,14.79,161.24,161.21,45.0]
[1721203837452,0.8364381,161.28,161.23,14.79]
[1721203837652,15.6264381,161.28,161.24,45.0]
[1721203837853,0.8364381,161.28,161.24,45.0]
[1721203838163,15.6264381,161.28,161.23,45.0]
[1721203838368,14.79,161.27,161.23,45.0]
[1721203839163,7.0368381,161.28,161.23,45.0]
[1721203839164,15.6264381,161.28,161.23,59.79]
[1721203840066,14.79,161.27,161.23,45.0]
[1721203840268,14.79,161.27,161.22,45.0]
[1721203840672,14.79,161.26,161.22,45.0]
[1721203841367,14.79,161.26,161.21,45.0]
[1721203841565,14.79,161.26,161.21,59.79]
[1721203842382,22.54159201,161.26,161.21,59.79]
[1721203842679,14.79,161.24,161.2,16.577]
[1721203845365,14.79,161.25,161.2,31.367]
[1721203847656,7.0369381,161.28,161.2,31.367]
[1721203847859,7.0369381,161.28,161.22,14.79]
[1721203847860,14.79,161.27,161.22,14.79]
[1721203848159,0.8364381,161.28,161.23,45.0]
[1721203848490,14.79,161.27,161.23,45.0]
[1721203853695,20.9907,161.27,161.23,45.0]
[1721203853891,14.79,161.26,161.23,45.0]
[1721203854087,14.79,161.26,161.22,45.0]
[1721203854288,20.9912,161.26,161.22,45.0]
[1721203854504,20.9912,161.26,161.2,31.367]
[1721203854505,14.79,161.26,161.21,45.0]
[1721203855176,6.2009,161.27,161.21,59.79]
[1721203855379,14.79,161.26,161.21,59.79]
[1721203855990,20.9909,161.27,161.22,16.03023798]
[1721203856328,20.9909,161.27,161.23,45.0]
[1721203856796,0.8364381,161.28,161.2,16.577]
[1721203856797,1.55026055,161.26,161.2,16.577]
[1721203857005,14.79,161.25,161.21,1.24037077]
[1721203857302,20.9916,161.25,161.21,1.24037077]
[1721203858177,20.9916,161.25,161.21,46.24037077]
[1721203858792,14.79,161.25,161.21,46.24037077]
[1721203859192,0.8364381,161.28,161.21,45.0]
[1721203859394,14.79,161.27,161.22,14.79]
[1721203859596,14.79,161.27,161.23,45.0]
[1721203861495,15.6264381,161.28,161.24,1.24016932]
[1721203866398,23.37698488,161.28,161.23,59.79]
[1721203866607,14.79,161.27,161.23,45.0]
[1721203867305,14.79,161.24,161.2,16.577]
[1721203867523,14.79,161.23,161.2,16.577]
[1721203868288,14.79,161.24,161.2,16.577]
[1721203869609,0.8364381,161.28,161.2,16.577]
[1721203869813,14.79,161.26,161.21,59.79]
[1721203869998,14.79,161.25,161.21,45.0]
[1721203870198,14.79,161.26,161.21,45.0]
[1721203870394,14.79,161.25,161.21,45.0]
[1721203872019,14.79,161.24,161.21,45.0]
[1721203874015,14.79,161.25,161.21,45.0]
[1721203875203,14.79,161.27,161.22,14.79]
[1721203875415,14.79,161.27,161.23,45.0]
[1721203876415,14.79,161.25,161.23,45.0]
[1721203877932,14.79,161.25,161.2,31.367]
[1721203877933,14.79,161.25,161.2,16.577]
[1721203878244,6.2008,161.27,161.21,46.24031287]
[1721203878448,14.79,161.25,161.21,46.24031287]
[1721203879735,14.79,161.24,161.21,46.24031287]
[1721203881734,14.79,161.24,161.21,45.0]
[1721203882606,14.79,161.25,161.21,45.0]
[1721203884121,14.79,161.26,161.21,45.0]
[1721203884522,14.79,161.26,161.22,1.24031995]
[1721203885240,14.79,161.23,161.16,22.8353]
[1721203885423,14.79,161.19,161.16,22.8353]
[1721203885610,14.79,161.19,161.16,16.5341]
[1721203886343,14.79,161.18,161.16,16.5341]
[1721203886841,14.79,161.19,161.16,16.5341]
[1721203887040,14.79,161.18,161.16,16.5341]
[1721203888215,14.79,161.17,161.16,16.5341]
[1721203889108,14.79,161.17,161.12,22.401]
[1721203889311,14.79,161.17,161.13,45.0]
[1721203889734,14.79,161.17,161.12,22.401]
[1721203889939,14.79,161.16,161.12,22.401]
[1721203890141,14.79,161.15,161.12,22.401]
[1721203890341,14.79,161.15,161.12,15.9215]
[1721203891823,14.79,161.15,161.13,1.24106481]
[1721203892235,14.79,161.15,161.12,15.9215]
[1721203895324,14.79,161.13,161.08,22.1813]
[1721203895652,14.79,161.11,161.08,15.9215]
[1721203896141,14.79,161.1,161.08,15.9215]
[1721203896741,14.79,161.09,161.08,15.9215]
[1721203897941,14.79,161.1,161.08,15.9215]
[1721203900227,14.79,161.1,161.05,14.79]
[1721203900548,14.79,161.1,161.06,45.0]
[1721203900729,7.75806618,161.13,161.06,45.0]
[1721203900730,14.79,161.09,161.06,45.0]
[1721203900928,14.79,161.09,161.05,45.0]
[1721203901134,14.79,161.09,161.04,21.5564]
[1721203901448,14.79,161.09,161.04,36.3464]
[1721203901755,14.79,161.09,161.05,0.45470047]
[1721203902343,1.5520202,161.11,161.05,45.0]
[1721203902547,14.79,161.1,161.05,45.0]
[1721203903043,14.79,161.09,161.05,45.0]
[1721203903353,20.9978,161.09,161.05,45.0]
[1721203903650,14.79,161.08,161.05,45.0]
[1721203905028,1.55205917,161.11,161.05,45.0]
[1721203905233,14.79,161.1,161.06,0.49896994]
[1721203905430,18.0069,161.17,161.07,14.79]
[1721203905431,7.75764414,161.15,161.07,14.79]
[1721203905653,14.79,161.12,161.08,45.49890798]
[1721203905866,1.55168118,161.19,161.09,16.3312]
[1721203906035,14.79,161.15,161.1,59.79]
[1721203906432,14.79,161.16,161.11,14.79]
[1721203906727,1.55134857,161.18,161.12,46.24107885]
[1721203906936,14.79,161.17,161.12,46.24107885]
[1721203907139,7.75391948,161.22,161.14,14.79]
[1721203907348,14.79,161.2,161.15,61.0307445]
[1721203907530,14.79,161.2,161.15,59.79]
[1721203907730,14.79,161.2,161.15,45.0]
[1721203907957,14.79,161.19,161.15,45.0]
[1721203908163,6.586,161.24,161.16,1.2407978]
[1721203908164,1.55099726,161.23,161.16,1.2407978]
[1721203908343,7.75339726,161.23,161.16,16.7248978]
[1721203908652,14.79,161.2,161.17,45.0]
[1721203908862,14.79,161.21,161.18,1.2406946]
[1721203909334,1.55086306,161.25,161.18,16.0306946]
[1721203909543,14.79,161.23,161.19,45.0]
[1721203909773,14.79,161.23,161.2,1.24049124]
[1721203910758,1.55070846,161.27,161.21,1.24049198]
[1721203910759,14.79,161.24,161.21,1.24049198]
[1721203910954,7.751778,161.26,161.21,1.24049198]
[1721203911261,14.79,161.25,161.22,1.24039442]
[1721203912444,20.9913,161.26,161.22,1.24039442]
[1721203912641,20.9917,161.25,161.21,45.0]
[1721203912842,20.9917,161.25,161.2,45.0]
[1721203915263,1.55043715,161.24,161.2,45.0]
[1721203915458,14.79,161.23,161.2,45.0]
[1721203915659,14.79,161.23,161.19,45.0]
[1721203916363,14.79,161.25,161.2,14.79]
[1721203916580,14.79,161.25,161.21,45.0]
[1721203916758,14.79,161.25,161.21,45.32298821]
[1721203916943,14.79,161.25,161.21,45.0]
[1721203917144,2.38687495,161.28,161.23,15.9728]
[1721203917352,0.8364381,161.28,161.24,1.24011887]
[1721203917556,0.8364381,161.28,161.24,46.24011887]
[1721203919352,0.8364381,161.28,161.24,45.0]
[1721203920276,15.6264381,161.28,161.24,45.0]
[1721203921371,0.8364381,161.28,161.25,1.24008028]
[1721203923273,7.0368381,161.28,161.24,59.79]
[1721203924262,0.8364381,161.28,161.24,59.79]
[1721203925167,0.8364381,161.28,161.25,1.24007874]
[1721203925563,0.8364381,161.28,161.25,16.03007874]
[1721203925772,0.8364381,161.28,161.26,45.0]
[1721203926265,0.8364381,161.28,161.25,45.0]
[1721203927360,0.8364381,161.28,161.25,59.79]
[1721203932252,0.8364381,161.28,161.26,14.79]
[1721203932458,0.8364381,161.28,161.27,45.0]
[1721203932964,0.8364381,161.28,161.26,45.0]
[1721203934378,15.6264381,161.28,161.25,45.0]
[1721203934580,15.6264381,161.28,161.24,45.0]
[1721203935160,21.8269381,161.28,161.23,30.7628]
[1721203935361,21.8269381,161.28,161.23,15.9728]
[1721203935362,14.79,161.26,161.23,15.9728]
[1721203935777,14.79,161.25,161.23,15.9728]
[1721203936079,14.79,161.26,161.23,15.9728]
[1721203936286,14.79,161.26,161.23,5.9728]
[1721203936481,0.8364381,161.28,161.23,5.9728]
[1721203936687,14.79,161.27,161.23,5.9728]
[1721203939098,15.6264381,161.28,161.24,45.0]
[1721203939275,0.8364381,161.28,161.24,59.79]
[1721203940992,0.8364381,161.28,161.25,14.79]
[1721203941279,0.8364381,161.28,161.26,45.0]
[1721203941685,0.8364381,161.28,161.25,45.0]
[1721203941877,0.8364381,161.28,161.27,14.79]
[1721203942065,0.8364381,161.28,161.27,45.0]
[1721203942476,0.8364381,161.28,161.26,45.0]
[1721203943686,0.8364381,161.28,161.26,59.79]
[1721203944485,0.8364381,161.28,161.26,45.0]
[1721203946093,0.8364381,161.28,161.25,45.0]
[1721203946991,0.8364381,161.28,161.26,14.79]
[1721203947176,0.8364381,161.28,161.25,45.0]
[1721203950083,0.8364381,161.28,161.26,14.79]
[1721203950282,0.8364381,161.28,161.27,45.0]
[1721203950905,0.8364381,161.28,161.27,59.79]
[1721203955105,0.8364381,161.28,161.27,61.0297695]
[1721203956019,0.8364381,161.28,161.27,45.0]
[1721203956202,0.8364381,161.28,161.27,59.79]
[1721203959340,0.8364381,161.28,161.27,45.0]
[1721203959937,0.8364381,161.28,161.26,45.0]
[1721203961036,0.8364381,161.28,161.26,59.79]
[1721203962017,0.8364381,161.28,161.27,14.79]
[1721203962341,0.8364381,161.28,161.27,59.79]
[1721203966045,0.8364381,161.28,161.27,61.19966851]
[1721203966254,0.8364381,161.28,161.27,60.13]
[1721203966905,0.8364381,161.28,161.27,45.34]
[1721203967109,0.8364381,161.28,161.27,59.96]
[1721203967336,0.8364381,161.28,161.27,59.79]
[1721203969632,0.8364381,161.28,161.23,15.9728]
[1721203969633,0.8364381,161.28,161.23,5.9728]
[1721203969812,0.8364381,161.28,161.25,14.79]
[1721203970035,0.8364381,161.28,161.23,5.9728]
[1721203970209,0.8364381,161.28,161.24,14.79]
[1721203970413,0.8364381,161.28,161.23,5.9728]
[1721203970727,0.8364381,161.28,161.24,14.79]
[1721203972345,14.79,161.27,161.21,14.79]
[1721203973118,14.79,161.27,161.19,16.2789]
[1721203973320,1.55027612,161.26,161.19,31.0689]
[1721203973523,20.9915,161.25,161.19,31.0689]
[1721203973745,20.9915,161.25,161.13,10.0]
[1721203973746,14.79,161.23,161.15,16.3629]
[1721203973949,14.79,161.23,161.18,14.79]
[1721203974750,14.79,161.23,161.15,16.3629]
[1721203974943,14.79,161.23,161.18,14.79]
[1721203975115,7.75212089,161.25,161.19,45.0]
[1721203975116,14.79,161.22,161.19,45.0]
[1721203975321,1.55062089,161.25,161.18,1.23947789]
[1721203975322,14.79,161.21,161.18,1.23947789]
[1721203976024,14.79,161.22,161.18,1.23947789]
[1721203976413,14.79,161.22,161.19,1.23940099]
[1721203976719,14.79,161.23,161.2,1.23917033]
[1721203976917,14.79,161.23,161.19,45.0]
[1721203978342,13.3766381,161.28,161.19,59.79]
[1721203978532,14.79,161.24,161.19,59.79]
[1721203979628,7.75178286,161.26,161.19,59.79]
[1721203979830,14.79,161.23,161.19,45.0]
[1721203980140,14.79,161.24,161.19,59.79]
[1721203980453,14.79,161.24,161.2,0.89683756]
[1721203980659,14.79,161.23,161.19,45.0]
[1721203981140,14.79,161.24,161.19,45.0]
[1721203981844,14.79,161.22,161.19,45.0]
[1721203982463,14.79,161.23,161.2,1.24054254]
[1721203982639,14.79,161.24,161.21,1.24044017]
[1721203983145,14.79,161.23,161.2,45.0]
[1721203983334,14.79,161.23,161.19,45.0]
[1721203983738,14.79,161.23,161.2,1.1179619]
[1721203983953,1.55057302,161.24,161.15,16.3629]
[1721203984191,14.79,161.2,161.15,31.1529]
[1721203985655,14.79,161.19,161.15,16.3629]
[1721203986060,14.79,161.19,161.14,14.79]
[1721203986362,1.55096266,161.21,161.12,14.79]
[1721203986363,14.79,161.18,161.12,14.79]
[1721203986750,14.79,161.18,161.13,14.79]
[1721203987778,14.79,161.18,161.14,45.0]
[1721203987969,14.79,161.17,161.13,45.0]
[1721203988755,14.79,161.17,161.12,59.79]
[1721203989457,14.79,161.17,161.12,45.0]
[1721203989658,14.79,161.15,161.11,15.0959]
[1721203990360,1.55106627,161.19,161.07,15.81]
[1721203990553,14.79,161.14,161.09,14.79]
[1721203990757,14.79,161.15,161.09,14.79]
[1721203991249,14.79,161.14,161.09,14.79]
[1721203992672,14.79,161.13,161.08,14.79]
[1721203992869,14.79,161.12,161.07,15.81]
[1721203993069,14.79,161.12,161.08,45.0]
[1721203993377,14.79,161.12,161.07,30.6]
[1721203993584,14.79,161.12,161.07,15.81]
[1721203993884,14.79,161.1,161.05,14.79]
[1721203994068,14.79,161.11,161.06,14.79]
[1721203994269,14.79,161.09,161.04,14.79]
[1721203994461,1.55198293,161.13,161.05,1.24158601]
[1721203994663,14.79,161.1,161.05,14.79]
[1721203994867,14.79,161.09,161.04,14.79]
[1721203995155,1.55198293,161.13,161.06,14.79]
[1721203995361,14.79,161.11,161.06,14.79]
[1721203995797,14.79,161.1,161.05,14.79]
[1721203996179,14.79,161.1,161.06,45.0]
[1721203998371,14.79,161.1,161.04,14.79]
[1721203998372,14.79,161.1,161.05,45.0]
[1721203998683,14.79,161.08,161.03,30.4084]
[1721203998897,14.79,161.07,161.03,15.6184]
[1721203999383,1.55208484,161.1,161.0,2.32819469]
[1721203999384,14.79,161.05,161.0,2.32819469]
[1721203999985,1.55230482,161.07,160.99,15.2966]
[1721203999986,14.79,161.04,160.99,15.2966]
[1721204000894,14.79,161.03,160.99,15.2966]
[1721204001101,14.79,161.03,160.96,2.03515232]
[1721204001410,1.55230482,161.07,160.95,16.2502]
[1721204001411,14.79,161.01,160.95,16.2502]
[1721204001587,14.79,161.01,160.95,22.67156055]
[1721204001792,14.79,160.98,160.91,18.4036186]
[1721204002124,14.79,160.98,160.93,14.79]
[1721204002410,14.79,160.98,160.92,6.42232688]
[1721204002411,14.79,160.97,160.92,14.79]
[1721204002611,14.79,160.95,160.91,16.2502]
[1721204002788,14.79,160.95,160.91,22.66381154]
[1721204003188,14.79,160.97,160.91,22.66381154]
[1721204003411,14.79,160.96,160.91,22.66381154]
[1721204003615,14.79,160.96,160.91,37.45381154]
[1721204003811,14.79,160.97,160.91,37.45381154]
[1721204004208,1.55325299,160.99,160.91,37.45381154]
[1721204004209,14.79,160.96,160.91,37.45381154]
[1721204004417,1.55325299,160.99,160.91,22.66381154]
[1721204004619,6.6012,161.0,160.91,6.41361154]
[1721204004620,14.79,160.92,160.91,6.41361154]
[1721204004811,14.79,160.92,160.86,16.4474]
[1721204005008,14.79,160.96,160.91,14.79]
[1721204005316,14.79,160.95,160.86,16.4474]
[1721204005515,14.79,160.96,160.91,14.79]
[1721204007325,14.79,160.97,160.92,59.79]
[1721204007616,14.79,160.98,160.93,14.79]
[1721204007815,1.55315783,160.99,160.94,14.79]
[1721204007816,16.34316024,160.99,160.94,14.79]
[1721204008692,16.34316024,160.99,160.95,1.24245991]
[1721204008894,1.55316024,160.99,160.95,16.03245991]
[1721204009104,1.55316024,160.99,160.95,14.79]
[1721204009289,21.3912,161.0,160.96,1.24222522]
[1721204009504,21.3912,161.0,160.95,14.79]
[1721204009700,6.6012,161.0,160.95,14.79]
[1721204010101,1.55299377,160.99,160.92,45.0]
[1721204010300,6.2123,160.97,160.86,46.1374]
[1721204010508,1.55342048,160.96,160.86,46.1374]
[1721204010723,7.76622048,160.96,160.87,1.24069258]
[1721204011004,1.55342048,160.96,160.87,1.24069258]
[1721204011213,1.55340202,160.96,160.86,56.1374]
[1721204011431,6.212,160.98,160.86,56.1374]
[1721204011638,7.76564899,160.97,160.86,56.1374]
[1721204011816,1.55324771,160.96,160.86,56.1374]
[1721204012136,1.55328578,160.96,160.86,56.1374]
[1721204012293,6.213,160.96,160.87,0.17]
[1721204012602,1.5533646,160.95,160.87,45.34]
[1721204012930,1.5533646,160.95,160.86,46.1374]
[1721204013222,6.2132,160.95,160.86,46.1374]
[1721204013432,7.76709485,160.94,160.87,0.61916654]
[1721204013605,6.2131,160.95,160.88,1.24287461]
[1721204013802,6.2127,160.96,160.86,16.4474]
[1721204014004,1.5534975,160.95,160.86,16.4474]
[1721204014262,6.2131,160.95,160.86,16.4474]
[1721204014433,1.55354988,160.94,160.86,16.4474]
[1721204014923,6.2142,160.92,160.83,36.10658103]
[1721204015134,1.55379161,160.91,160.83,29.69]
[1721204015432,1.55379161,160.91,160.83,6.4253401]
[1721204016035,1.55392502,160.9,160.83,6.4253401]
[1721204016221,6.215,160.9,160.83,6.4253401]
[1721204016434,1.55401634,160.89,160.83,6.4253401]
[1721204016731,7.76961634,160.89,160.83,6.4253401]
[1721204016920,6.2158,160.88,160.83,6.4253401]
[1721204017104,1.55417673,160.87,160.83,6.4253401]
[1721204018112,6.2158,160.88,160.83,6.4253401]
[1721204018318,7.77057705,160.87,160.78,16.5982]
[1721204018528,1.55429581,160.86,160.78,16.5982]
[1721204018830,1.55438382,160.85,160.74,15.1885]
[1721204019036,1.55438382,160.85,160.74,25.1885]
[1721204019222,1.55438382,160.85,160.79,6.42643752]
[1721204019419,1.55438382,160.85,160.74,43.8385]
[1721204019619,1.5544039,160.84,160.79,6.42716792]
[1721204019933,12.495,160.89,160.74,64.8785]
[1721204020133,6.2166,160.86,160.79,6.42722981]
[1721204020339,1.55452236,160.85,160.79,6.42722981]
[1721204020514,1.55451439,160.84,160.8,1.24361151]
[1721204020720,0.17,160.88,160.79,6.4273213]
[1721204020921,6.2165,160.86,160.8,1.24361459]
[1721204021239,1.55451584,160.85,160.8,1.24361459]
[1721204021761,7.77151584,160.85,160.79,6.4273213]
[1721204022046,6.2178,160.83,160.79,6.4273213]
[1721204022350,1.55479805,160.82,160.79,6.4273213]
[1721204022636,1.55479805,160.82,160.74,15.1885]
[1721204022827,1.55479805,160.82,160.77,6.4285245]
[1721204023143,7.77224867,160.84,160.74,15.1885]
[1721204023312,7.77224867,160.84,160.79,6.219]
[1721204023512,1.55468928,160.87,160.84,6.2173]
[1721204023923,6.5362,160.89,160.79,11.24295084]
[1721204024144,12.7516,160.89,160.84,6.217]
[1721204024433,12.7516,160.89,160.85,6.2169]
[1721204024636,6.5362,160.89,160.85,6.2169]
[1721204024816,6.5362,160.89,160.81,1.24318703]
[1721204025410,12.7516,160.89,160.81,1.24318703]
[1721204025623,12.7519,160.89,160.81,1.24318703]
[1721204025825,12.7516,160.89,160.81,1.24318703]
[1721204026023,6.5362,160.89,160.81,1.24318703]
[1721204027041,1.55409864,160.9,160.82,15.5561]
[1721204027247,1.55409864,160.9,160.83,45.0]
[1721204027744,1.55393645,160.91,160.84,1.24318668]
[1721204027945,1.55393645,160.91,160.83,45.0]
[1721204028144,8.14900594,160.93,160.84,1.24312475]
[1721204028328,1.55390594,160.92,160.85,0.34]
[1721204028747,7.76820594,160.92,160.83,74.69]
[1721204028949,7.76820594,160.92,160.84,0.34]
[1721204029854,1.55390594,160.92,160.84,0.34]
[1721204030067,12.495,160.94,160.85,30.93292728]
[1721204030351,1.55354511,160.95,160.86,46.58283609]
[1721204030650,1.55354511,160.95,160.87,0.6513169]
[1721204031959,1.55350556,160.96,160.88,1.41280445]
[1721204032328,1.55343289,160.95,160.88,1.24280445]
[1721204032528,1.55343289,160.96,160.88,1.24280445]
[1721204032960,1.55343289,160.96,160.88,30.93280445]
[1721204033148,1.55326151,160.97,160.89,61.9396]
[1721204033328,1.55326647,160.98,160.9,1.24261318]
[1721204033530,1.55326647,160.98,160.89,61.9396]
[1721204033830,6.2124,160.97,160.89,61.9396]
[1721204034031,1.55334436,160.96,160.89,61.9396]
[1721204034230,6.2119,160.98,160.89,61.9396]
[1721204034540,7.76571616,160.97,160.89,61.9396]
[1721204034842,7.76571616,160.97,160.9,1.24265347]
[1721204035030,1.55331616,160.97,160.9,1.24265347]
[1721204035231,6.2123,160.97,160.9,1.24265347]
[1721204035431,1.5533172,160.96,160.89,61.9396]
[1721204035635,6.2127,160.96,160.89,61.9396]
[1721204035951,1.55341665,160.95,160.9,1.2427354]
[1721204036132,7.76681665,160.95,160.9,1.2427354]
[1721204036325,6.2134,160.95,160.89,61.5996]
[1721204036773,1.55349424,160.94,160.89,61.5996]
[1721204037147,6.2141,160.93,160.85,29.69]